[Event "*** Titled Tuesday Blitz"]
[Site "Chess.com"]
[Date "2020.11.03"]
[Round "8"]
[White "mishanick"]
[Black "exoticprincess"]
[Result "0-1"]
[WhiteElo "3013"]
[BlackElo "2900"]
[TimeControl "180+1"]
[EndTime "11:33:04 PST"]
[Termination "exoticprincess won by resignation"]

1. c4 {[%clk 0:03:00.9]} 1... c6 {[%clk 0:02:59.4]} 2. d4 {[%clk 0:03:01.3]}
2... d5 {[%clk 0:02:59.9]} 3. Nf3 {[%clk 0:03:02.1]} 3... Nf6 {[%clk 0:03:00.1]}
4. Nc3 {[%clk 0:03:02.9]} 4... dxc4 {[%clk 0:03:00.3]} 5. a4 {[%clk 0:03:03.3]}
5... a5 {[%clk 0:03:00.9]} 6. e3 {[%clk 0:03:01.3]} 6... Bg4 {[%clk 0:03:00.3]}
7. Bxc4 {[%clk 0:03:01.7]} 7... e6 {[%clk 0:03:00.6]} 8. h3 {[%clk 0:03:01.8]}
8... Bh5 {[%clk 0:03:00.5]} 9. g4 {[%clk 0:03:02.4]} 9... Bg6 {[%clk 0:03:00.3]}
10. Ne5 {[%clk 0:03:03.1]} 10... Nbd7 {[%clk 0:02:58.3]} 11. Nxg6 {[%clk
0:02:38]} 11... hxg6 {[%clk 0:02:59.2]} 12. Qf3 {[%clk 0:02:37.3]} 12... Qb6
{[%clk 0:02:40.2]} 13. O-O {[%clk 0:02:32.4]} 13... Bb4 {[%clk 0:02:27.4]} 14.
Ne2 {[%clk 0:02:30.7]} 14... O-O {[%clk 0:01:40.5]} 15. b3 {[%clk 0:02:28]}
15... Rad8 {[%clk 0:01:31.5]} 16. Bb2 {[%clk 0:02:28.2]} 16... Qc7 {[%clk
0:01:27.4]} 17. Rac1 {[%clk 0:02:25.9]} 17... g5 {[%clk 0:01:22.2]} 18. Rfd1
{[%clk 0:02:24.9]} 18... Qd6 {[%clk 0:01:05.9]} 19. Ng3 {[%clk 0:02:22.3]} 19...
Ba3 {[%clk 0:01:03.9]} 20. Bxa3 {[%clk 0:02:16.1]} 20... Qxa3 {[%clk 0:01:04.8]}
21. e4 {[%clk 0:02:06.9]} 21... Nb6 {[%clk 0:00:59.7]} 22. Qe3 {[%clk
0:01:47.7]} 22... Nh7 {[%clk 0:00:49.9]} 23. Be2 {[%clk 0:01:24]} 23... Qb4
{[%clk 0:00:47.5]} 24. Rc5 {[%clk 0:01:23.1]} 24... Nd7 {[%clk 0:00:39.9]} 25.
Rc4 {[%clk 0:01:21.7]} 25... Qb6 {[%clk 0:00:40.3]} 26. d5 {[%clk 0:01:14.7]}
26... Qxe3 {[%clk 0:00:39.4]} 27. fxe3 {[%clk 0:01:15.6]} 27... exd5 {[%clk
0:00:39.4]} 28. exd5 {[%clk 0:01:16.2]} 28... Nb6 {[%clk 0:00:39.7]} 29. Rc5
{[%clk 0:01:09.3]} 29... Nxd5 {[%clk 0:00:39.8]} 30. Kf2 {[%clk 0:01:01.5]}
30... Ra8 {[%clk 0:00:36]} 31. Bc4 {[%clk 0:00:54.9]} 31... Nhf6 {[%clk
0:00:33.6]} 32. Kf3 {[%clk 0:00:46.4]} 32... Nd7 {[%clk 0:00:31.7]} 33. Rcxd5
{[%clk 0:00:44.6]} 33... cxd5 {[%clk 0:00:31.5]} 34. Rxd5 {[%clk 0:00:44.7]}
34... Nb6 {[%clk 0:00:31.7]} 35. Rxg5 {[%clk 0:00:43]} 35... Nxc4 {[%clk
0:00:32.1]} 36. bxc4 {[%clk 0:00:43.9]} 36... Rfd8 {[%clk 0:00:24.2]} 37. c5
{[%clk 0:00:44.3]} 37... Rd1 {[%clk 0:00:22.1]} 38. Nf5 {[%clk 0:00:38.4]} 38...
g6 {[%clk 0:00:22.2]} 39. Nd6 {[%clk 0:00:38.8]} 39... b6 {[%clk 0:00:22.4]} 40.
Ne4 {[%clk 0:00:29.2]} 40... bxc5 {[%clk 0:00:20.5]} 41. Rxc5 {[%clk 0:00:28.7]}
41... Ra1 {[%clk 0:00:20]} 42. Nc3 {[%clk 0:00:29.1]} 42... Rc1 {[%clk
0:00:20.2]} 43. e4 {[%clk 0:00:26.7]} 43... Rd8 {[%clk 0:00:19.8]} 44. Ke3
{[%clk 0:00:27.2]} 44... Kg7 {[%clk 0:00:19.7]} 45. h4 {[%clk 0:00:27.6]} 45...
Rdd1 {[%clk 0:00:18.4]} 46. h5 {[%clk 0:00:26.7]} 46... Rc2 {[%clk 0:00:17.3]}
47. hxg6 {[%clk 0:00:20.8]} 47... Kxg6 {[%clk 0:00:18.2]} 48. Rc8 {[%clk
0:00:20.3]} 48... Kg7 {[%clk 0:00:18]} 49. Rc6 {[%clk 0:00:20.4]} 49... Ra1
{[%clk 0:00:16.8]} 50. Kd3 {[%clk 0:00:19.8]} 50... Rcc1 {[%clk 0:00:17.2]} 51.
Rc5 {[%clk 0:00:20.2]} 51... Ra3 {[%clk 0:00:16.3]} 52. Kd2 {[%clk 0:00:20.7]}
52... Rg1 {[%clk 0:00:16.4]} 53. Rxa5 {[%clk 0:00:20.7]} 53... Rg2+ {[%clk
0:00:15.1]} 54. Ne2 {[%clk 0:00:16.5]} 54... Ra2+ {[%clk 0:00:14.9]} 55. Ke3
{[%clk 0:00:17.4]} 55... Rgxe2+ {[%clk 0:00:15.6]} 56. Kf4 {[%clk 0:00:18.3]}
56... Rf2+ {[%clk 0:00:14.7]} 57. Ke5 {[%clk 0:00:18.8]} 57... Ra1 {[%clk
0:00:15.4]} 58. g5 {[%clk 0:00:18.6]} 58... Rfa2 {[%clk 0:00:16.3]} 59. Kf5
{[%clk 0:00:15.9]} 59... Rxa4 {[%clk 0:00:17.2]} 0-1

[Event "*** Titled Tuesday Blitz"]
[Site "Chess.com"]
[Date "2020.11.03"]
[Round "8"]
[White "Rakesh"]
[Black "Vuk2000"]
[Result "1-0"]
[WhiteElo "2484"]
[BlackElo "2632"]
[TimeControl "180+1"]
[EndTime "11:33:06 PST"]
[Termination "Rakesh won on time"]

1. e4 {[%clk 0:02:58.3]} 1... e6 {[%clk 0:03:00.1]} 2. d4 {[%clk 0:02:57.9]}
2... d5 {[%clk 0:03:00.7]} 3. Bd3 {[%clk 0:02:57.4]} 3... Be7 {[%clk 0:02:52.6]}
4. Nf3 {[%clk 0:02:51.7]} 4... dxe4 {[%clk 0:02:44]} 5. Bxe4 {[%clk 0:02:45.1]}
5... Nf6 {[%clk 0:02:44.2]} 6. Bd3 {[%clk 0:02:44.9]} 6... Nbd7 {[%clk
0:02:43.9]} 7. O-O {[%clk 0:02:44.7]} 7... b6 {[%clk 0:02:42]} 8. c3 {[%clk
0:02:41.8]} 8... Bb7 {[%clk 0:02:40.7]} 9. Qe2 {[%clk 0:02:41]} 9... O-O {[%clk
0:02:38.3]} 10. Bg5 {[%clk 0:02:41.1]} 10... c5 {[%clk 0:02:10.9]} 11. Nbd2
{[%clk 0:02:34.8]} 11... cxd4 {[%clk 0:02:07.1]} 12. Nxd4 {[%clk 0:02:30.4]}
12... Nc5 {[%clk 0:02:07]} 13. Bc4 {[%clk 0:02:29.5]} 13... Nd5 {[%clk
0:01:53.2]} 14. Bxe7 {[%clk 0:02:26.9]} 14... Qxe7 {[%clk 0:01:53]} 15. N2f3
{[%clk 0:02:25.8]} 15... Rfd8 {[%clk 0:01:50.4]} 16. Rad1 {[%clk 0:02:24.6]}
16... Qf6 {[%clk 0:01:42.5]} 17. Qe5 {[%clk 0:02:15.2]} 17... Nf4 {[%clk
0:01:40.3]} 18. Qxf6 {[%clk 0:01:58.8]} 18... gxf6 {[%clk 0:01:41.2]} 19. Rfe1
{[%clk 0:01:43.6]} 19... Rac8 {[%clk 0:01:18.7]} 20. Nb5 {[%clk 0:01:25.6]}
20... Ne4 {[%clk 0:01:03.9]} 21. Nxa7 {[%clk 0:01:09.4]} 21... Rxd1 {[%clk
0:00:57.3]} 22. Rxd1 {[%clk 0:01:10.3]} 22... Rxc4 {[%clk 0:00:56.3]} 23. Rd7
{[%clk 0:01:09]} 23... Ba6 {[%clk 0:00:43.1]} 24. g3 {[%clk 0:01:08.1]} 24...
Nd5 {[%clk 0:00:42.1]} 25. Nd4 {[%clk 0:01:08.1]} 25... Rc7 {[%clk 0:00:37.3]}
26. Rd8+ {[%clk 0:01:05.1]} 26... Kg7 {[%clk 0:00:36.5]} 27. Nac6 {[%clk
0:01:03.1]} 27... Bb7 {[%clk 0:00:32.5]} 28. Nb4 {[%clk 0:00:43.4]} 28... Nxb4
{[%clk 0:00:32.1]} 29. cxb4 {[%clk 0:00:44.3]} 29... Rc1+ {[%clk 0:00:28.7]} 30.
Kg2 {[%clk 0:00:44.5]} 30... Ng5+ {[%clk 0:00:28.9]} 31. f3 {[%clk 0:00:45]}
31... Nxf3 {[%clk 0:00:28.9]} 32. Nxe6+ {[%clk 0:00:35.9]} 32... fxe6 {[%clk
0:00:28.4]} 33. Rd7+ {[%clk 0:00:36.3]} 33... Kg6 {[%clk 0:00:28.4]} 34. Rxb7
{[%clk 0:00:37.2]} 34... Ne5 {[%clk 0:00:24.4]} 35. Rxb6 {[%clk 0:00:37.2]}
35... Rc2+ {[%clk 0:00:24.6]} 36. Kf1 {[%clk 0:00:35.6]} 36... Rxb2 {[%clk
0:00:23.2]} 37. a4 {[%clk 0:00:36.1]} 37... Nd3 {[%clk 0:00:21.9]} 38. b5 {[%clk
0:00:35.6]} 38... e5 {[%clk 0:00:22.3]} 39. a5 {[%clk 0:00:35.7]} 39... e4
{[%clk 0:00:21.8]} 40. a6 {[%clk 0:00:34.8]} 40... Kf5 {[%clk 0:00:16.2]} 41.
Rb8 {[%clk 0:00:25.5]} 41... e3 {[%clk 0:00:13.5]} 42. Re8 {[%clk 0:00:25.7]}
42... Ne5 {[%clk 0:00:13.8]} 43. a7 {[%clk 0:00:23.5]} 43... e2+ {[%clk
0:00:13.3]} 44. Kf2 {[%clk 0:00:16.1]} 44... Nd3+ {[%clk 0:00:11.4]} 45. Kf3
{[%clk 0:00:16.4]} 45... Ne5+ {[%clk 0:00:03.8]} 46. Rxe5+ {[%clk 0:00:09.3]}
46... Kxe5 {[%clk 0:00:02.1]} 47. Kf2 {[%clk 0:00:09.5]} 47... Rxb5 {[%clk
0:00:01.8]} 48. a8=Q {[%clk 0:00:09.4]} 48... Kf5 {[%clk 0:00:01.9]} 49. Qf3+
{[%clk 0:00:09.1]} 49... Kg6 {[%clk 0:00:01.9]} 50. Qd3+ {[%clk 0:00:08.7]} 1-0

[Event "*** Titled Tuesday Blitz"]
[Site "Chess.com"]
[Date "2020.11.03"]
[Round "8"]
[White "PotapovaM"]
[Black "Nuvas"]
[Result "0-1"]
[WhiteElo "2591"]
[BlackElo "2332"]
[TimeControl "180+1"]
[EndTime "11:33:11 PST"]
[Termination "Nuvas won by resignation"]

1. d4 {[%clk 0:03:00.9]} 1... d5 {[%clk 0:03:00]} 2. c4 {[%clk 0:03:01.1]} 2...
c6 {[%clk 0:03:00.2]} 3. Nf3 {[%clk 0:03:00.1]} 3... Nf6 {[%clk 0:03:00.4]} 4.
g3 {[%clk 0:03:00.7]} 4... Bg4 {[%clk 0:02:41.7]} 5. Ne5 {[%clk 0:02:59.7]} 5...
Bf5 {[%clk 0:02:41.2]} 6. Qb3 {[%clk 0:02:56.8]} 6... Qb6 {[%clk 0:02:38]} 7. c5
{[%clk 0:02:50.9]} 7... Qxb3 {[%clk 0:02:30.4]} 8. axb3 {[%clk 0:02:51.8]} 8...
a5 {[%clk 0:02:21.6]} 9. Nc3 {[%clk 0:02:47.4]} 9... e6 {[%clk 0:01:39.8]} 10.
b4 {[%clk 0:02:44]} 10... Nfd7 {[%clk 0:01:33.9]} 11. Nxd7 {[%clk 0:02:23.5]}
11... Kxd7 {[%clk 0:01:33.8]} 12. bxa5 {[%clk 0:02:11.1]} 12... Be7 {[%clk
0:01:33]} 13. f3 {[%clk 0:02:07.7]} 13... Na6 {[%clk 0:01:21.3]} 14. Kf2 {[%clk
0:01:48.8]} 14... Bd8 {[%clk 0:01:05.2]} 15. e4 {[%clk 0:01:47.1]} 15... dxe4
{[%clk 0:01:05.3]} 16. fxe4 {[%clk 0:01:48]} 16... Bg6 {[%clk 0:01:05.8]} 17.
Ra4 {[%clk 0:01:39.4]} 17... e5 {[%clk 0:00:56.6]} 18. Be3 {[%clk 0:01:32.3]}
18... exd4 {[%clk 0:00:49.7]} 19. Rxd4+ {[%clk 0:01:33.2]} 19... Ke7 {[%clk
0:00:47]} 20. Bh3 {[%clk 0:01:26.2]} 20... Re8 {[%clk 0:00:34.6]} 21. b4 {[%clk
0:01:09.7]} 21... Kf8 {[%clk 0:00:32.5]} 22. Rd7 {[%clk 0:00:48.7]} 22... Bf6
{[%clk 0:00:27.3]} 23. Ne2 {[%clk 0:00:34.3]} 23... Nxb4 {[%clk 0:00:21.5]} 24.
Rb1 {[%clk 0:00:32.5]} 24... Nc2 {[%clk 0:00:18.1]} 25. Bf4 {[%clk 0:00:15.8]}
25... Rxa5 {[%clk 0:00:15.7]} 26. Rbxb7 {[%clk 0:00:15.6]} 26... Ra2 {[%clk
0:00:15.8]} 27. Kf3 {[%clk 0:00:12.2]} 27... Bxe4+ {[%clk 0:00:15.2]} 28. Kf2
{[%clk 0:00:11]} 28... Nd4 {[%clk 0:00:15.4]} 29. Rxf7+ {[%clk 0:00:10.5]} 29...
Kg8 {[%clk 0:00:15.9]} 30. Bg4 {[%clk 0:00:05.9]} 30... Nxe2 {[%clk 0:00:16.2]}
31. Bxe2 {[%clk 0:00:06.5]} 31... Bd3 {[%clk 0:00:16.7]} 32. g4 {[%clk
0:00:05.3]} 32... Raxe2+ {[%clk 0:00:16.5]} 33. Kg3 {[%clk 0:00:05.9]} 33... Bc4
{[%clk 0:00:14.5]} 34. Rfc7 {[%clk 0:00:05.6]} 34... Bd5 {[%clk 0:00:14.6]} 35.
h4 {[%clk 0:00:05.3]} 35... Bd4 {[%clk 0:00:14.8]} 36. g5 {[%clk 0:00:05.1]}
36... Rg2+ {[%clk 0:00:14.7]} 37. Kh3 {[%clk 0:00:05.2]} 37... Rf2 {[%clk
0:00:15.1]} 38. Kg3 {[%clk 0:00:05.2]} 38... Rxf4 {[%clk 0:00:15.6]} 39. Kxf4
{[%clk 0:00:05.3]} 39... Be5+ {[%clk 0:00:16.3]} 40. Kf5 {[%clk 0:00:05.1]}
40... Bxc7 {[%clk 0:00:16.5]} 41. Rxc7 {[%clk 0:00:06]} 41... Rf8+ {[%clk
0:00:14.9]} 42. Ke5 {[%clk 0:00:05.7]} 42... g6 {[%clk 0:00:14.6]} 43. Rd7
{[%clk 0:00:04.1]} 43... Rf7 {[%clk 0:00:14.9]} 44. Rd8+ {[%clk 0:00:04.2]}
44... Kg7 {[%clk 0:00:15.6]} 45. Rd6 {[%clk 0:00:04]} 45... Re7+ {[%clk
0:00:15.8]} 46. Kf4 {[%clk 0:00:04]} 46... Re4+ {[%clk 0:00:16.5]} 47. Kg3
{[%clk 0:00:04.5]} 47... Rc4 {[%clk 0:00:15.8]} 48. Rd7+ {[%clk 0:00:04.6]}
48... Kg8 {[%clk 0:00:16.3]} 49. Rd8+ {[%clk 0:00:04.8]} 49... Kf7 {[%clk
0:00:17]} 50. Rd7+ {[%clk 0:00:05.4]} 50... Ke6 {[%clk 0:00:17.5]} 51. Rxh7
{[%clk 0:00:05.6]} 51... Rxc5 {[%clk 0:00:18.2]} 52. h5 {[%clk 0:00:04.4]} 52...
gxh5 {[%clk 0:00:18.2]} 53. g6 {[%clk 0:00:05.1]} 53... Kf6 {[%clk 0:00:17.9]}
54. g7 {[%clk 0:00:04.1]} 54... Bg8 {[%clk 0:00:18.6]} 55. Rxh5 {[%clk 0:00:03]}
55... Rxh5 {[%clk 0:00:18]} 0-1

[Event "*** Titled Tuesday Blitz"]
[Site "Chess.com"]
[Date "2020.11.03"]
[Round "8"]
[White "Dr-Bassem"]
[Black "Aygehovit1992"]
[Result "1-0"]
[WhiteElo "2811"]
[BlackElo "2643"]
[TimeControl "180+1"]
[EndTime "11:33:14 PST"]
[Termination "Dr-Bassem won on time"]

1. e4 {[%clk 0:03:00.9]} 1... d6 {[%clk 0:03:00.9]} 2. d4 {[%clk 0:02:58]} 2...
Nf6 {[%clk 0:03:01.8]} 3. Nc3 {[%clk 0:02:55.8]} 3... g6 {[%clk 0:03:02.2]} 4.
Bg5 {[%clk 0:02:52.4]} 4... Bg7 {[%clk 0:03:01.5]} 5. Qd2 {[%clk 0:02:52.5]}
5... h6 {[%clk 0:03:01.2]} 6. Bf4 {[%clk 0:02:47.4]} 6... g5 {[%clk 0:03:00.2]}
7. Bg3 {[%clk 0:02:47.2]} 7... Nh5 {[%clk 0:02:55.6]} 8. O-O-O {[%clk
0:02:47.4]} 8... c6 {[%clk 0:02:55.3]} 9. Be2 {[%clk 0:02:25.3]} 9... Nxg3
{[%clk 0:02:53.6]} 10. hxg3 {[%clk 0:02:26.2]} 10... b5 {[%clk 0:02:44.9]} 11.
f4 {[%clk 0:02:21]} 11... b4 {[%clk 0:02:42.7]} 12. Nb1 {[%clk 0:02:17.9]} 12...
Be6 {[%clk 0:02:28.8]} 13. Qxb4 {[%clk 0:02:13.3]} 13... Nd7 {[%clk 0:02:21.8]}
14. f5 {[%clk 0:02:09.2]} 14... Bxa2 {[%clk 0:02:21.5]} 15. Nc3 {[%clk
0:02:09.1]} 15... c5 {[%clk 0:02:15]} 16. dxc5 {[%clk 0:01:57.3]} 16... Nxc5
{[%clk 0:02:10.6]} 17. Bb5+ {[%clk 0:01:47.6]} 17... Kf8 {[%clk 0:02:09.6]} 18.
Nxa2 {[%clk 0:01:46.8]} 18... Rb8 {[%clk 0:02:06.9]} 19. Qxc5 {[%clk 0:01:41]}
19... dxc5 {[%clk 0:02:04.2]} 20. Rxd8+ {[%clk 0:01:40.1]} 20... Rxd8 {[%clk
0:02:05.1]} 21. Ne2 {[%clk 0:01:34.7]} 21... Be5 {[%clk 0:02:04.8]} 22. Nac3
{[%clk 0:01:32]} 22... Kg7 {[%clk 0:02:04.7]} 23. g4 {[%clk 0:01:25.1]} 23... e6
{[%clk 0:01:56.7]} 24. Bc4 {[%clk 0:01:22.7]} 24... exf5 {[%clk 0:01:53.8]} 25.
exf5 {[%clk 0:01:12.5]} 25... Rhe8 {[%clk 0:01:53.4]} 26. b3 {[%clk 0:01:00.1]}
26... Bf6 {[%clk 0:01:38.3]} 27. Rh3 {[%clk 0:00:51.9]} 27... Rd6 {[%clk
0:01:05.2]} 28. Bd3 {[%clk 0:00:49.3]} 28... Be5 {[%clk 0:00:54.1]} 29. Ne4
{[%clk 0:00:46.5]} 29... Rc6 {[%clk 0:00:50]} 30. Bb5 {[%clk 0:00:45.7]} 30...
Rec8 {[%clk 0:00:36.6]} 31. Bxc6 {[%clk 0:00:44.7]} 31... Rxc6 {[%clk
0:00:37.5]} 32. N2c3 {[%clk 0:00:44]} 32... c4 {[%clk 0:00:37.8]} 33. b4 {[%clk
0:00:44]} 33... a5 {[%clk 0:00:36.7]} 34. b5 {[%clk 0:00:37.9]} 34... Rb6 {[%clk
0:00:36.3]} 35. Rh1 {[%clk 0:00:33]} 35... a4 {[%clk 0:00:36.3]} 36. Kb1 {[%clk
0:00:32.8]} 36... Rb8 {[%clk 0:00:18.3]} 37. Rd1 {[%clk 0:00:31.6]} 37... h5
{[%clk 0:00:17.4]} 38. gxh5 {[%clk 0:00:31.2]} 38... Kh6 {[%clk 0:00:16.5]} 39.
g4 {[%clk 0:00:30.1]} 39... a3 {[%clk 0:00:16]} 40. Rd5 {[%clk 0:00:29.2]} 40...
f6 {[%clk 0:00:16.9]} 41. Ka2 {[%clk 0:00:28.8]} 41... Rb7 {[%clk 0:00:15.9]}
42. Rc5 {[%clk 0:00:23.6]} 42... Rb8 {[%clk 0:00:14.9]} 43. Rxc4 {[%clk
0:00:23.7]} 43... Rd8 {[%clk 0:00:14]} 44. Kxa3 {[%clk 0:00:22.6]} 44... Ra8+
{[%clk 0:00:13.3]} 45. Kb3 {[%clk 0:00:22.1]} 45... Ra1 {[%clk 0:00:12.9]} 46.
Rc6 {[%clk 0:00:21.4]} 46... Kg7 {[%clk 0:00:10.4]} 47. b6 {[%clk 0:00:19]}
47... Ra6 {[%clk 0:00:09.8]} 48. Nd5 {[%clk 0:00:15.7]} 48... Ra1 {[%clk
0:00:09.3]} 49. Nd2 {[%clk 0:00:14.3]} 49... Ra5 {[%clk 0:00:07.5]} 50. c4
{[%clk 0:00:11.3]} 50... Ra6 {[%clk 0:00:05.3]} 51. Nf3 {[%clk 0:00:10.4]} 51...
Bg3 {[%clk 0:00:01.3]} 52. Rxf6 {[%clk 0:00:08.2]} 1-0

[Event "*** Titled Tuesday Blitz"]
[Site "Chess.com"]
[Date "2020.11.03"]
[Round "8"]
[White "pedromartinez91"]
[Black "anon481216"]
[Result "1-0"]
[WhiteElo "2596"]
[BlackElo "2402"]
[TimeControl "180+1"]
[EndTime "11:33:17 PST"]
[Termination "pedromartinez91 won on time"]

1. b3 {[%clk 0:03:00.9]} 1... e5 {[%clk 0:02:59.6]} 2. Bb2 {[%clk 0:02:59.2]}
2... Nc6 {[%clk 0:02:57.9]} 3. e3 {[%clk 0:02:59.4]} 3... Nf6 {[%clk 0:02:56.8]}
4. Nf3 {[%clk 0:02:59.8]} 4... e4 {[%clk 0:02:55.5]} 5. Nd4 {[%clk 0:02:59.7]}
5... Nxd4 {[%clk 0:02:54.9]} 6. Bxd4 {[%clk 0:03:00.6]} 6... d5 {[%clk
0:02:51.4]} 7. d3 {[%clk 0:03:00.7]} 7... exd3 {[%clk 0:02:50.9]} 8. Bxd3 {[%clk
0:03:00.3]} 8... Be7 {[%clk 0:02:50.8]} 9. Nd2 {[%clk 0:03:00.4]} 9... c5 {[%clk
0:02:49.9]} 10. Bb2 {[%clk 0:03:00.2]} 10... O-O {[%clk 0:02:49.9]} 11. O-O
{[%clk 0:02:59.9]} 11... b6 {[%clk 0:02:49.4]} 12. Nf3 {[%clk 0:02:56.4]} 12...
Bb7 {[%clk 0:02:48.9]} 13. Qe2 {[%clk 0:02:55.5]} 13... Qd7 {[%clk 0:02:36.1]}
14. Rfd1 {[%clk 0:02:54.3]} 14... Qg4 {[%clk 0:02:24.3]} 15. Ne5 {[%clk
0:02:52.8]} 15... Qxe2 {[%clk 0:02:23.9]} 16. Bxe2 {[%clk 0:02:53.7]} 16... Rfd8
{[%clk 0:02:22.7]} 17. Bf3 {[%clk 0:02:52.2]} 17... Ne4 {[%clk 0:02:14.7]} 18.
Nd3 {[%clk 0:02:46.9]} 18... Bf6 {[%clk 0:01:46.5]} 19. Bxe4 {[%clk 0:02:42.2]}
19... Bxb2 {[%clk 0:01:41]} 20. Bxh7+ {[%clk 0:02:41.6]} 20... Kxh7 {[%clk
0:01:39.8]} 21. Nxb2 {[%clk 0:02:42.5]} 21... Rd6 {[%clk 0:01:37.3]} 22. Rd2
{[%clk 0:02:40.8]} 22... Rg6 {[%clk 0:01:36.5]} 23. g3 {[%clk 0:02:40.7]} 23...
Re8 {[%clk 0:01:31.3]} 24. Rad1 {[%clk 0:02:39.9]} 24... Rge6 {[%clk 0:01:25.6]}
25. c3 {[%clk 0:02:35.9]} 25... Kg6 {[%clk 0:01:25.1]} 26. Nd3 {[%clk
0:02:33.1]} 26... Kf6 {[%clk 0:01:19.5]} 27. Nf4 {[%clk 0:02:33]} 27... Rd6
{[%clk 0:01:19]} 28. h4 {[%clk 0:02:24.8]} 28... Red8 {[%clk 0:01:15.4]} 29. g4
{[%clk 0:02:17.2]} 29... Ke5 {[%clk 0:01:12.3]} 30. Kh2 {[%clk 0:02:13.4]} 30...
d4 {[%clk 0:01:02.4]} 31. cxd4+ {[%clk 0:02:12.7]} 31... cxd4 {[%clk 0:01:02.5]}
32. Kg3 {[%clk 0:02:12.7]} 32... Be4 {[%clk 0:00:50.1]} 33. f3 {[%clk
0:01:46.7]} 33... Bh7 {[%clk 0:00:49.2]} 34. e4 {[%clk 0:01:40.5]} 34... f6
{[%clk 0:00:34.7]} 35. Nd3+ {[%clk 0:01:38.6]} 35... Ke6 {[%clk 0:00:34.7]} 36.
Rc1 {[%clk 0:01:38.4]} 36... R6d7 {[%clk 0:00:27.4]} 37. Nb4 {[%clk 0:01:37.7]}
37... d3 {[%clk 0:00:17.7]} 38. Rc3 {[%clk 0:01:30.6]} 38... Rd4 {[%clk
0:00:14.1]} 39. Rcxd3 {[%clk 0:01:28.7]} 39... Rxd3 {[%clk 0:00:13.6]} 40. Rxd3
{[%clk 0:01:29.2]} 40... Rc8 {[%clk 0:00:14]} 41. Rd2 {[%clk 0:01:24]} 41... Rc3
{[%clk 0:00:13.5]} 42. h5 {[%clk 0:01:22.1]} 42... Bxe4 {[%clk 0:00:12.8]} 43.
Rf2 {[%clk 0:01:12.7]} 43... Bb7 {[%clk 0:00:12.5]} 44. Nc2 {[%clk 0:01:07.9]}
44... a5 {[%clk 0:00:10]} 45. Nd4+ {[%clk 0:01:07.8]} 45... Kf7 {[%clk
0:00:09.3]} 46. Nb5 {[%clk 0:01:06.3]} 46... Rd3 {[%clk 0:00:09.1]} 47. Kf4
{[%clk 0:01:00.5]} 47... Bc6 {[%clk 0:00:08.9]} 48. Na3 {[%clk 0:00:59.4]} 48...
a4 {[%clk 0:00:08.2]} 49. Nc4 {[%clk 0:00:52.1]} 49... axb3 {[%clk 0:00:07.9]}
50. axb3 {[%clk 0:00:50]} 50... Rxb3 {[%clk 0:00:08]} 51. Ne3 {[%clk 0:00:49.7]}
51... b5 {[%clk 0:00:07.7]} 52. Rc2 {[%clk 0:00:45.2]} 52... Bd7 {[%clk
0:00:05.2]} 53. Rc7 {[%clk 0:00:44.6]} 53... Rd3 {[%clk 0:00:05]} 54. Ke4 {[%clk
0:00:40.4]} 54... Rd2 {[%clk 0:00:03.8]} 55. Nd5 {[%clk 0:00:35.6]} 55... Ke6
{[%clk 0:00:03.7]} 56. Nf4+ {[%clk 0:00:26.7]} 56... Kd6 {[%clk 0:00:03.8]} 57.
Ra7 {[%clk 0:00:25.3]} 57... Rb2 {[%clk 0:00:01.3]} 58. Ra6+ {[%clk 0:00:18.8]}
58... Bc6+ {[%clk 0:00:01.4]} 59. Ke3 {[%clk 0:00:17]} 59... Rb3+ {[%clk
0:00:01.3]} 60. Nd3 {[%clk 0:00:17.2]} 1-0